bitfinex/quotes_SOLUSD_20240925
["timestamp","ask_amount","ask_price","bid_price","bid_amount"]
[1727238994837,6.3654,151.53,151.49,12.0316672]
[1727238996010,6.3654,151.53,151.49,10.7118219]
[1727238997234,6.3654,151.53,151.48,23.776884]
[1727238997736,12.9649,151.53,151.43,20.0]
[1727238997936,12.9649,151.53,151.46,10.7118219]
[1727238998257,16.0752,151.5,151.42,6.88082276]
[1727238998540,6.6014,151.49,151.41,0.31674459]
[1727238998719,6.6014,151.49,151.41,11.02856649]
[1727238999917,16.0752,151.5,151.43,10.7118219]
[1727239000142,16.0752,151.5,151.44,1.32022969]
[1727239000642,22.6758,151.5,151.44,1.32022969]
[1727239002643,6.6011,151.49,151.43,10.7118219]
[1727239003225,6.6015,151.48,151.43,10.7118219]
[1727239003441,6.6014,151.49,151.41,0.31674459]
[1727239003738,16.0752,151.5,151.41,0.31674459]
[1727239003739,16.0752,151.5,151.42,10.7118219]
[1727239003918,22.6758,151.5,151.42,10.7118219]
[1727239004325,16.0752,151.5,151.41,0.31674459]
[1727239004531,6.6016,151.48,151.42,10.7118219]
[1727239005023,6.6016,151.48,151.41,0.31674459]
[1727239005343,6.6016,151.48,151.42,10.7118219]
[1727239009145,16.0752,151.5,151.42,10.7118219]
[1727239009146,6.6011,151.49,151.42,10.7118219]
[1727239010457,6.6011,151.49,151.44,10.7118219]
[1727239010627,22.6759,151.5,151.45,1.32028097]
[1727239012750,22.6759,151.5,151.43,34.4887059]
[1727239012939,22.6759,151.5,151.44,1.32028193]
[1727239013522,22.6759,151.5,151.43,34.4887059]
[1727239013523,16.0752,151.5,151.45,12.03210367]
[1727239013725,16.0752,151.5,151.47,10.7118219]
[1727239013945,6.5972,151.51,151.49,10.7118219]
[1727239014432,16.1676,151.54,151.5,1.31993272]
[1727239015541,16.1676,151.54,151.49,10.7118219]
[1727239016636,22.7665,151.54,151.49,10.7118219]
[1727239023454,22.7665,151.54,151.43,39.376484]
[1727239023455,16.1676,151.54,151.5,35.80854261]
[1727239023634,6.5976,151.57,151.5,1.31983671]
[1727239023839,6.5981,151.56,151.51,10.7118219]
[1727239024129,6.5976,151.57,151.52,1.31966148]
[1727239026361,6.5976,151.57,151.52,12.03148338]
[1727239026653,6.5976,151.57,151.53,1.31961101]
[1727239027029,21.95551661,151.58,151.53,12.03143291]
[1727239027236,0.24391661,151.58,151.55,10.7118219]
[1727239027455,0.24391661,151.58,151.56,1.3193424]
[1727239027767,0.24391661,151.58,151.57,34.4887059]
[1727239027957,0.24391661,151.58,151.57,23.776884]
[1727239028136,0.24391661,151.58,151.56,34.4887059]
[1727239028462,0.24391661,151.58,151.57,1.31918717]
[1727239028642,0.24391661,151.58,151.56,34.4887059]
[1727239030250,0.24391661,151.58,151.51,15.0349]
[1727239030562,0.24391661,151.58,151.54,23.776884]
[1727239031057,0.24391661,151.58,151.55,12.03113289]
[1727239031237,0.24391661,151.58,151.56,23.776884]
[1727239031437,0.24391661,151.58,151.55,10.7118219]
[1727239033442,0.24391661,151.58,151.56,23.776884]
[1727239034375,0.24391661,151.58,151.55,10.7118219]
[1727239035162,0.24391661,151.58,151.56,1.31924484]
[1727239035667,0.24391661,151.58,151.57,34.4887059]
[1727239037267,0.24391661,151.58,151.51,15.0349]
[1727239037439,0.24391661,151.58,151.54,10.7118219]
[1727239037645,0.24391661,151.58,151.55,1.31931322]
[1727239038441,0.24391661,151.58,151.56,10.7118219]
[1727239040464,0.24391661,151.58,151.57,1.31936648]
[1727239041350,0.24391661,151.58,151.56,10.7118219]
[1727239042373,0.24391661,151.58,151.51,15.0349]
[1727239042579,0.24391661,151.58,151.55,10.7118219]
[1727239043877,0.24391661,151.58,151.56,1.31936745]
[1727239044372,0.24391661,151.58,151.55,10.7118219]
[1727239044670,0.24391661,151.58,151.56,1.31936755]
[1727239046562,0.24391661,151.58,151.57,34.4887059]
[1727239054975,0.24391661,151.58,151.57,23.776884]
[1727239055157,0.24391661,151.58,151.57,34.4887059]
[1727239065063,0.2439484,151.62,151.57,34.4887059]
[1727239065270,0.2439484,151.62,151.61,34.4887059]
[1727239065580,15.2573,151.69,151.61,34.4887059]
[1727239065581,15.2573,151.69,151.66,0.65935]
[1727239065886,21.8497,151.69,151.66,0.65935]
[1727239066178,6.5932,151.67,151.66,0.65935]
[1727239067185,6.94503179,151.68,151.66,0.65935]
[1727239067564,6.5932,151.67,151.66,0.65935]
[1727239083603,26.5932,151.67,151.66,0.65935]
[1727239087826,27.908428,151.67,151.66,0.65935]
[1727239088107,6.5958,151.61,151.57,23.776884]
[1727239088302,6.5958,151.61,151.56,15.0175]
[1727239090396,6.5958,151.61,151.56,15.0175]
[1727239090592,6.5958,151.61,151.55,23.776884]
[1727239095296,15.2437,151.64,151.55,23.776884]
[1727239095607,6.5968,151.59,151.55,23.776884]
[1727239106113,1.315228,151.63,151.51,6.08758409]
[1727239106319,6.5985,151.55,151.51,0.2439484]
[1727239107024,6.598,151.56,151.51,0.2439484]
[1727239110416,32.3203,151.61,151.51,0.2439484]
[1727239110620,6.5976,151.57,151.51,10.9557703]
[1727239112332,6.598,151.56,151.51,10.9557703]
[1727239115212,6.598,151.56,151.51,0.2439484]
[1727239120129,6.5985,151.55,151.51,0.2439484]
[1727239120537,6.5994,151.53,151.51,0.2439484]
[1727239128725,6.5997,151.52,151.51,0.2439484]
[1727239133952,15.7697,151.56,151.51,0.2439484]
[1727239134141,6.5992,151.54,151.51,0.2439484]
[1727239134334,1.315228,151.53,151.51,0.2439484]
[1727239134528,6.5994,151.53,151.51,0.2439484]
[1727239143559,6.5988,151.55,151.51,0.2439484]
[1727239143865,6.5976,151.57,151.51,0.2439484]
[1727239144157,6.5972,151.58,151.52,1.31965817]
[1727239144661,6.5977,151.57,151.51,10.9557703]
[1727239144958,6.5977,151.57,151.52,23.776884]
[1727239145856,1.315228,151.59,151.51,0.2439484]
[1727239146059,6.5989,151.54,151.51,0.2439484]
[1727239147848,6.5985,151.55,151.51,0.2439484]
[1727239148050,6.5985,151.55,151.51,1.56373652]
[1727239148459,6.5985,151.55,151.51,0.2439484]
[1727239155042,16.4926,151.59,151.51,0.2439484]
[1727239155043,20.0,151.59,151.52,1.31981044]
[1727239155380,6.5975,151.58,151.51,10.9557703]
[1727239155740,6.5975,151.58,151.52,23.776884]
[1727239159965,16.4888,151.62,151.51,34.7326543]
[1727239160181,6.5958,151.61,151.54,23.776884]
[1727239171758,6.5964,151.6,151.54,23.776884]
[1727239171955,1.315228,151.64,151.54,23.776884]
[1727239172176,22.5486,151.65,151.52,16.5975]
[1727239172177,16.4882,151.63,151.52,27.3093219]
[1727239172350,6.5972,151.58,151.52,27.3093219]
[1727239173469,6.5968,151.59,151.53,23.776884]
[1727239174377,16.4882,151.63,151.53,23.776884]
[1727239174550,6.5972,151.58,151.53,23.776884]
[1727239180064,6.5967,151.6,151.53,23.776884]
[1727239180404,6.5967,151.6,151.55,23.776884]
[1727239182487,6.5958,151.61,151.56,1.31925483]
[1727239182966,6.5955,151.62,151.56,1.31925483]
[1727239184683,31.7447,151.66,151.56,1.31925483]
[1727239184889,6.595,151.63,151.57,40.367384]
[1727239185765,6.5954,151.62,151.57,16.5905]
[1727239187374,6.5954,151.62,151.58,1.31921046]
[1727239190178,15.2604,151.66,151.59,23.776884]
[1727239190489,6.5946,151.64,151.6,1.31902857]
[1727239193400,6.5955,151.62,151.57,16.5905]
[1727239194282,6.595,151.63,151.58,1.31922317]
[1727239194688,6.5954,151.62,151.57,16.5905]
[1727239195587,6.5954,151.62,151.58,1.31922463]
[1727239195971,6.5954,151.62,151.57,16.5905]
[1727239199805,6.595,151.63,151.58,23.776884]
[1727239200799,6.595,151.63,151.57,16.5905]
[1727239201589,6.595,151.63,151.58,1.31915971]
[1727239202810,6.595,151.63,151.57,16.5905]
[1727239203010,6.595,151.63,151.58,1.31916043]
[1727239205002,6.5946,151.64,151.59,23.776884]
[1727239205311,6.5941,151.65,151.58,23.776884]
[1727239205614,6.5946,151.64,151.58,23.776884]
[1727239211809,1.315228,151.63,151.55,6.0897]
[1727239211999,1.315228,151.63,151.56,23.776884]
[1727239212517,15.2604,151.66,151.56,23.776884]
[1727239213425,6.5954,151.62,151.56,23.776884]
[1727239217417,15.2604,151.66,151.56,23.776884]
[1727239217722,6.595,151.63,151.56,23.776884]
[1727239219523,6.3578,151.64,151.56,23.776884]
[1727239219825,15.8938,151.61,151.51,0.2439484]
[1727239220133,6.5972,151.58,151.51,0.2439484]
[1727239220437,6.5977,151.57,151.51,0.2439484]
[1727239220614,6.3578,151.59,151.51,0.2439484]
[1727239220615,6.5985,151.55,151.51,0.2439484]
[1727239220923,6.5989,151.54,151.51,0.2439484]
[1727239221506,1.315228,151.53,151.51,0.2439484]
[1727239221717,6.5997,151.52,151.51,0.2439484]
[1727239223618,15.8938,151.55,151.51,0.2439484]
[1727239223831,22.4923,151.55,151.51,0.2439484]
[1727239224824,15.8938,151.55,151.51,0.2439484]
[1727239227223,22.4923,151.55,151.51,0.2439484]
[1727239228542,1.315228,151.54,151.51,0.2439484]
[1727239231147,22.4923,151.55,151.51,0.2439484]
[1727239232960,1.315228,151.54,151.51,0.2439484]
[1727239233143,7.914228,151.54,151.51,0.2439484]
[1727239234052,6.5994,151.53,151.51,0.2439484]
[1727239236324,6.599,151.54,151.51,0.2439484]
[1727239237051,6.5994,151.53,151.51,0.2439484]
[1727239243029,6.5997,151.52,151.51,0.2439484]
[1727239245335,15.8938,151.55,151.51,0.2439484]
[1727239245856,15.5235,151.59,151.51,10.9557703]
[1727239246235,15.5235,151.59,151.52,1.31972572]
[1727239247342,6.5973,151.58,151.52,1.31972572]
[1727239249465,6.5973,151.58,151.51,10.9557703]
[1727239256246,6.5973,151.58,151.51,0.2439484]
[1727239257962,6.5967,151.59,151.52,23.776884]
[1727239258165,20.0,151.6,151.53,1.31961752]
[1727239258463,6.5966,151.6,151.52,34.4887059]
[1727239258864,6.5966,151.6,151.52,49.7078059]
[1727239260261,7.912028,151.59,151.52,49.7078059]
[1727239260571,6.5972,151.58,151.52,15.2191]
[1727239261963,6.5972,151.58,151.53,1.3196698]
[1727239262280,6.5967,151.59,151.53,1.3196698]
[1727239262468,6.5967,151.59,151.53,23.776884]
[1727239263062,6.5967,151.59,151.52,25.9309219]
[1727239265183,15.2761,151.63,151.53,25.09652645]
[1727239265378,6.5963,151.6,151.53,25.09652645]
[1727239265560,6.5959,151.61,151.54,10.7118219]
[1727239265877,32.2194,151.67,151.56,34.4887059]
[1727239266077,6.5951,151.63,151.56,34.4887059]
[1727239266377,6.596,151.61,151.54,10.7118219]
[1727239266583,6.596,151.61,151.55,23.776884]
[1727239267159,6.596,151.61,151.53,23.776884]
[1727239267360,32.2194,151.67,151.53,23.776884]
[1727239267361,1.315228,151.6,151.53,23.776884]
[1727239267660,1.315228,151.63,151.53,23.776884]
[1727239267857,6.5964,151.6,151.53,23.776884]
[1727239268059,1.315228,151.59,151.53,23.776884]
[1727239269561,1.315228,151.58,151.53,23.776884]
[1727239269890,26.2389,151.64,151.54,1.31957349]
[1727239270065,6.5955,151.62,151.54,1.31957349]
[1727239270388,6.5955,151.62,151.55,34.4887059]
[1727239270687,6.5953,151.63,151.56,1.31924885]
[1727239271389,6.5953,151.63,151.57,23.776884]
[1727239271559,6.5953,151.63,151.58,1.31924099]
[1727239271759,6.5953,151.63,151.57,23.776884]
[1727239271971,6.5953,151.63,151.58,1.31920758]
[1727239273161,6.5953,151.63,151.56,23.776884]
[1727239274971,6.5958,151.61,151.54,10.7118219]
[1727239275378,6.5968,151.59,151.52,32.4060219]
[1727239275891,7.912028,151.59,151.52,32.4060219]
[1727239276690,6.5968,151.59,151.53,23.776884]
[1727239278090,6.5973,151.58,151.53,23.776884]
[1727239278862,6.5973,151.58,151.52,21.6942]
[1727239279060,6.5973,151.58,151.52,15.2191]
[1727239279269,1.315228,151.57,151.52,15.2191]
[1727239280165,6.5973,151.58,151.52,15.2191]
[1727239283395,20.0,151.61,151.53,35.80834635]
[1727239283688,15.736,151.62,151.56,23.776884]
[1727239283888,22.3315,151.62,151.56,23.776884]
[1727239284088,22.3315,151.62,151.57,1.31930378]
[1727239284486,12.8339,151.63,151.57,1.31930378]
[1727239284793,6.595,151.63,151.56,23.776884]
[1727239285098,15.8956,151.66,151.57,10.7118219]
[1727239285275,6.5951,151.63,151.57,10.7118219]
[1727239290019,6.5951,151.63,151.58,10.602]
[1727239290807,7.910728,151.62,151.58,10.602]
[1727239291472,6.5955,151.62,151.58,10.602]
[1727239292503,15.8956,151.66,151.58,10.602]
[1727239292803,21.315228,151.65,151.58,10.602]
[1727239292969,6.5963,151.6,151.58,10.602]
[1727239293186,6.5951,151.63,151.58,10.602]
[1727239296702,1.315228,151.62,151.58,10.602]
[1727239296927,20.0,151.65,151.58,10.602]
[1727239297438,6.5964,151.6,151.58,10.602]
[1727239298132,6.5967,151.59,151.58,10.602]
[1727239338482,6.5967,151.59,151.58,10.602]
[1727239344996,26.5967,151.59,151.58,10.602]
[1727239351986,6.5996,151.53,151.51,0.2439484]
[1727239352297,16.494,151.57,151.51,0.2439484]
[1727239352298,7.914928,151.52,151.51,0.2439484]
[1727239352604,6.5997,151.52,151.51,0.2439484]
[1727239357711,26.5997,151.52,151.51,0.2439484]
[1727239361903,6.5997,151.52,151.51,0.2439484]
[1727239364784,6.5994,151.53,151.51,0.2439484]
[1727239367615,6.5997,151.52,151.51,0.2439484]
[1727239369010,7.914928,151.52,151.51,0.2439484]
[1727239370118,6.5997,151.52,151.51,0.2439484]
[1727239373496,51.4736,151.56,151.51,0.2439484]
[1727239373497,20.0,151.55,151.51,0.2439484]
[1727239373812,6.5985,151.55,151.51,0.2439484]
[1727239375023,23.776884,151.58,151.51,0.2439484]
[1727239375323,6.599,151.54,151.51,0.2439484]
[1727239377611,6.5985,151.55,151.51,0.2439484]
[1727239380750,15.117,151.6,151.56,6.598]
[1727239381030,6.5963,151.6,151.55,6.5981]
[1727239383153,6.5971,151.59,151.54,6.5988]
[1727239383233,7.912428,151.58,151.53,13.2227]
[1727239383529,1.315228,151.57,151.53,13.2227]
[1727239385426,1.315228,151.57,151.53,6.6235]
[1727239385628,6.5977,151.57,151.53,6.6235]
[1727239386032,36.4883,151.63,151.53,6.6235]
[1727239386033,6.5972,151.58,151.53,6.6235]
[1727239386329,6.5972,151.58,151.53,13.2227]
[1727239391856,1.315228,151.57,151.53,13.2227]
[1727239392358,6.5972,151.58,151.53,13.2227]
[1727239396252,36.4883,151.63,151.54,1.31968492]
[1727239396446,6.5963,151.6,151.54,12.03150682]
[1727239397147,6.5963,151.6,151.55,6.5984]
[1727239397353,1.315228,151.59,151.55,6.5984]
[1727239397744,6.5963,151.6,151.55,6.5984]
[1727239397937,6.5968,151.59,151.53,6.6235]
[1727239398151,6.5968,151.59,151.54,6.5988]
[1727239399658,1.315228,151.58,151.54,6.5988]
[1727239399960,7.912328,151.58,151.54,6.5988]
[1727239400154,6.5971,151.58,151.54,6.5988]
[1727239400660,6.5971,151.58,151.53,6.6235]
[1727239400661,1.315228,151.57,151.53,13.2225]
[1727239400836,6.5971,151.58,151.53,13.2225]
[1727239401039,1.315228,151.57,151.53,13.2225]
[1727239402943,6.5971,151.58,151.53,13.2225]
[1727239403244,1.315228,151.57,151.53,13.2225]
[1727239403449,6.5971,151.58,151.53,13.2225]
[1727239404543,6.5971,151.58,151.54,6.5988]
[1727239406766,6.5968,151.59,151.54,6.5988]
[1727239407145,6.5944,151.65,151.59,6.5967]
[1727239407361,6.5944,151.65,151.6,6.5962]
[1727239408651,0.35223179,151.68,151.59,6.5966]
[1727239408851,6.595,151.63,151.58,6.5971]
[1727239409076,1.315228,151.62,151.58,6.5971]
[1727239409789,7.910628,151.62,151.55,15.394]
[1727239409980,1.315228,151.61,151.55,15.394]
[1727239410778,6.5959,151.61,151.55,15.394]
[1727239411972,6.5954,151.62,151.55,15.394]
[1727239412192,20.0,151.65,151.56,1.3194538]
[1727239412646,6.5954,151.62,151.57,6.5975]
[1727239415573,6.5958,151.61,151.57,6.5975]
[1727239417273,6.5956,151.62,151.57,6.5975]
[1727239420690,20.0,151.65,151.55,15.394]
[1727239420880,6.5959,151.61,151.56,6.5979]
[1727239421197,6.5968,151.59,151.55,21.9923]
[1727239423342,38.9974,151.65,151.55,15.394]
[1727239423576,6.5962,151.61,151.56,6.5979]
[1727239423803,43.776884,151.64,151.55,15.394]
[1727239424103,6.5963,151.6,151.55,21.9923]
[1727239426179,20.0,151.63,151.55,21.9923]
[1727239426471,6.5968,151.59,151.55,21.9923]
[1727239428687,6.5968,151.59,151.55,15.394]
[1727239432294,23.776884,151.64,151.53,6.6235]
[1727239432295,6.5972,151.58,151.53,6.6235]
[1727239432500,6.5987,151.55,151.51,16.1545484]
[1727239432809,16.1405,151.6,151.51,16.1545484]
[1727239432810,6.5993,151.53,151.51,0.2439484]
[1727239433174,6.5989,151.54,151.51,0.2439484]
[1727239434074,1.315228,151.53,151.51,0.2439484]
[1727239436107,7.914928,151.52,151.51,0.2439484]
[1727239436909,6.5997,151.52,151.51,0.2439484]
[1727239441906,16.4956,151.56,151.51,0.2439484]
[1727239442110,16.4956,151.56,151.41,44.06709886]
[1727239442111,6.5994,151.53,151.41,44.06709886]
[1727239442295,1.315228,151.52,151.45,10.7118219]
[1727239442611,6.5994,151.53,151.45,10.7118219]
[1727239442919,16.7395484,151.56,151.45,10.7118219]
[1727239443762,6.5998,151.52,151.43,10.7118219]
[1727239443804,6.5998,151.52,151.44,23.776884]
[1727239447310,6.5998,151.52,151.45,1.32027871]
[1727239447889,22.3227,151.55,151.45,1.32027871]
[1727239448097,6.5993,151.53,151.45,1.32027871]
[1727239450509,6.5993,151.53,151.44,23.776884]
[1727239454603,1.315228,151.52,151.43,13.7496]
[1727239454796,6.6011,151.49,151.4,8.00091289]
[1727239454999,1.315228,151.48,151.39,29.71821589]
[1727239455409,7.916728,151.48,151.39,29.71821589]
[1727239455918,7.916728,151.48,151.39,13.7496]
[1727239456218,7.916728,151.48,151.39,24.4614219]
[1727239456399,7.916728,151.48,151.41,10.7118219]
[1727239456602,6.6015,151.48,151.41,10.7118219]
[1727239457045,1.315228,151.47,151.41,10.7118219]
[1727239458101,1.315228,151.47,151.4,23.776884]
[1727239458705,1.315228,151.47,151.39,24.4614219]
[1727239459219,6.6021,151.47,151.38,74.30003974]
[1727239459410,1.315228,151.46,151.38,57.3292012]
[1727239460823,6.6021,151.47,151.38,57.3292012]
[1727239461226,15.7065,151.46,151.38,57.3292012]
[1727239463045,15.7065,151.46,151.36,2.3645737]
[1727239463046,6.6033,151.44,151.36,24.12914401]
[1727239463381,1.315228,151.43,151.36,0.35226001]
[1727239464749,6.6033,151.44,151.36,0.35226001]
[1727239464755,6.6033,151.44,151.37,1.32105988]
[1727239465130,6.6605,151.45,151.37,1.32105988]
[1727239465351,6.6605,151.45,151.36,11.06408191]
[1727239465628,6.6033,151.44,151.36,0.35226001]
[1727239468135,15.7065,151.43,151.36,0.35226001]
[1727239468336,1.315228,151.42,151.36,0.35226001]
[1727239469418,15.7065,151.43,151.36,0.35226001]
[1727239471849,15.7065,151.43,151.37,1.32103524]
[1727239472237,15.7065,151.43,151.36,0.35226001]
[1727239472745,15.7065,151.43,151.37,1.32096209]
[1727239473227,15.7065,151.43,151.38,1.32093805]
[1727239473839,15.7065,151.43,151.36,11.06408191]
[1727239475246,15.7065,151.43,151.36,0.35226001]
[1727239476155,15.7065,151.43,151.37,1.32102753]
[1727239479230,15.7065,151.43,151.36,0.35226001]
[1727239480853,22.3102,151.43,151.36,0.35226001]
[1727239480955,22.3102,151.43,151.36,1.67332048]
[1727239481130,15.7065,151.43,151.36,1.67332048]
[1727239481325,15.7065,151.43,151.36,0.35226001]
[1727239483844,1.315228,151.42,151.36,0.35226001]
[1727239485244,22.3102,151.43,151.36,0.35226001]
[1727239493064,15.7065,151.43,151.36,0.35226001]
[1727239493262,15.7065,151.43,151.37,1.3210593]
[1727239494267,15.7065,151.43,151.36,1.67331925]
[1727239495765,15.7065,151.43,151.36,12.38514115]
[1727239497477,15.7065,151.43,151.36,0.35226001]
[1727239498553,1.315228,151.42,151.36,0.35226001]
[1727239500374,15.7065,151.43,151.36,0.35226001]
[1727239502192,15.7065,151.43,151.38,34.4887059]
[1727239502353,6.6605,151.45,151.4,10.7118219]
[1727239502561,6.6605,151.45,151.41,1.32057359]
[1727239502769,6.6605,151.45,151.4,10.7118219]
[1727239503237,6.6605,151.45,151.36,0.35226001]
[1727239503429,7.918528,151.44,151.36,0.35226001]
[1727239503809,16.1284,151.43,151.36,0.35226001]
[1727239505309,23.2546,151.45,151.37,23.776884]
[1727239506185,29.8578,151.45,151.37,23.776884]
[1727239507667,23.2546,151.45,151.38,1.32079381]
[1727239509490,23.2546,151.45,151.37,34.4887059]
[1727239509686,23.2546,151.45,151.37,23.776884]
[1727239510074,23.2546,151.45,151.38,1.32080145]
[1727239510685,23.2546,151.45,151.37,23.776884]
[1727239510899,23.2546,151.45,151.36,11.06408191]
[1727239511077,6.6037,151.43,151.36,0.35226001]
[1727239511404,29.8578,151.45,151.37,1.32097014]
[1727239511698,6.6033,151.44,151.36,0.35226001]
[1727239512304,7.919028,151.43,151.36,0.35226001]
[1727239513295,6.6041,151.42,151.36,0.35226001]
[1727239513608,1.315228,151.41,151.36,0.35226001]
[1727239513996,6.6037,151.43,151.36,0.35226001]
[1727239514201,16.5941,151.41,151.36,0.35226001]
[1727239514696,6.3977,151.4,151.36,0.35226001]
[1727239515906,1.315228,151.39,151.36,0.35226001]
[1727239516281,1.315228,151.38,151.36,0.35226001]
[1727239516987,6.3977,151.4,151.36,0.35226001]
[1727239517378,6.6054,151.39,151.36,0.35226001]
[1727239520876,6.3977,151.4,151.36,0.35226001]
[1727239521094,13.0028,151.4,151.36,0.35226001]
[1727239522089,6.3977,151.4,151.36,0.35226001]
[1727239522506,1.315228,151.39,151.36,0.35226001]
[1727239524469,13.0029,151.4,151.36,0.35226001]
[1727239524476,6.3977,151.4,151.36,0.35226001]
[1727239524481,7.920628,151.39,151.36,0.35226001]
[1727239524488,13.0031,151.4,151.36,0.35226001]
[1727239524495,6.6063,151.37,151.36,0.35226001]
[1727239525190,7.921528,151.37,151.36,0.35226001]
[1727239525360,16.2991,151.39,151.36,0.35226001]
[1727239525413,6.6059,151.38,151.36,0.35226001]
[1727239527503,1.315228,151.37,151.36,0.35226001]
[1727239527703,6.6063,151.37,151.36,0.35226001]
[1727239529242,31.698412,151.37,151.36,0.35226001]
[1727239529730,30.383184,151.37,151.36,0.35226001]
[1727239529929,6.6063,151.37,151.36,0.35226001]
[1727239530538,30.383184,151.37,151.36,0.35226001]
[1727239531758,6.6063,151.37,151.36,0.35226001]
[1727239531920,23.776884,151.38,151.36,0.35226001]
[1727239532130,16.2991,151.39,151.36,0.35226001]
[1727239532922,22.9049,151.39,151.36,0.35226001]
[1727239533137,6.6059,151.38,151.36,0.35226001]
[1727239534133,16.2991,151.39,151.36,0.35226001]
[1727239534134,30.383184,151.37,151.36,0.35226001]
[1727239534639,51.698412,151.37,151.36,0.35226001]
[1727239535219,6.608,151.33,151.32,0.3167128]
[1727239535419,30.384884,151.33,151.32,0.3167128]
[1727239535633,6.608,151.33,151.32,0.3167128]
[1727239535822,6.6077,151.34,151.32,0.3167128]
[1727239536224,16.856728,151.33,151.32,0.3167128]
[1727239536433,15.5415,151.33,151.32,0.3167128]
[1727239538243,16.856728,151.33,151.32,0.3167128]
[1727239539127,15.5415,151.37,151.32,0.3167128]
[1727239539337,22.1478,151.37,151.32,0.3167128]
[1727239540226,1.315228,151.36,151.32,0.3167128]
[1727239540726,7.922028,151.36,151.32,0.3167128]
[1727239542752,1.315228,151.36,151.32,0.3167128]
[1727239542964,6.6072,151.35,151.32,0.3167128]
[1727239543207,1.315228,151.34,151.32,0.3167128]
[1727239545649,30.383684,151.36,151.32,0.3167128]
[1727239545849,22.1478,151.37,151.32,0.3167128]
[1727239546166,15.5415,151.37,151.32,0.3167128]
[1727239546367,6.6068,151.36,151.32,0.3167128]
[1727239548663,12.8713,151.38,151.32,0.3167128]
[1727239549460,6.2651,151.38,151.32,0.3167128]
[1727239549663,6.6064,151.37,151.32,0.3167128]
[1727239550853,6.6073,151.35,151.32,0.3167128]
[1727239551049,1.315228,151.34,151.32,0.3167128]
[1727239551250,6.6073,151.35,151.32,0.3167128]
[1727239551957,6.6068,151.36,151.32,0.3167128]
[1727239552152,1.315228,151.35,151.32,0.3167128]
[1727239552356,6.6068,151.36,151.32,0.3167128]
[1727239552875,1.315228,151.36,151.32,0.3167128]
[1727239553571,6.6065,151.37,151.32,0.3167128]
[1727239553867,12.871,151.38,151.32,0.3167128]
[1727239554254,6.6059,151.38,151.32,0.3167128]
[1727239554569,43.776884,151.4,151.32,0.3167128]
[1727239554865,6.6055,151.39,151.32,0.3167128]
[1727239557964,7.921128,151.38,151.32,0.3167128]
[1727239558879,6.6059,151.38,151.32,0.3167128]
[1727239559887,1.315228,151.37,151.32,0.3167128]
[1727239560297,7.921628,151.37,151.32,0.3167128]
[1727239560373,6.6068,151.36,151.32,0.3167128]
[1727239560551,1.315228,151.35,151.32,0.3167128]
[1727239561005,7.922528,151.35,151.32,0.3167128]
[1727239561478,6.6073,151.35,151.32,0.3167128]
[1727239561787,6.6068,151.36,151.32,0.3167128]
[1727239563636,15.4873,151.41,151.32,0.3167128]
[1727239563891,6.6059,151.38,151.32,0.3167128]
[1727239564890,1.315228,151.37,151.32,0.3167128]
[1727239565406,6.6059,151.38,151.32,0.3167128]
[1727239565795,1.315228,151.37,151.32,0.3167128]
[1727239566489,6.6064,151.37,151.32,0.3167128]
[1727239567589,6.6059,151.38,151.32,0.3167128]
[1727239567800,6.6058,151.39,151.32,0.3167128]
[1727239568242,30.381884,151.4,151.32,14.4186128]
[1727239569293,6.605,151.4,151.32,14.4186128]
[1727239569599,20.0,151.44,151.34,10.7118219]
[1727239569799,20.0,151.44,151.35,1.32112978]
[1727239570099,6.6045,151.42,151.34,10.7118219]
[1727239571192,6.6046,151.41,151.32,25.1304347]
[1727239571393,7.919828,151.41,151.32,25.1304347]
[1727239571593,6.605,151.4,151.32,25.1304347]
[1727239571791,1.315228,151.39,151.32,25.1304347]
[1727239572710,6.605,151.4,151.32,25.1304347]
[1727239573009,7.920628,151.39,151.32,14.4186128]
[1727239573309,6.6054,151.39,151.32,14.4186128]
[1727239573506,23.776884,151.43,151.33,12.03321472]